Cogmind - Beta 13 @@@ ROGUE MODE // 2024.04.12 @ 07:42:42 Player: Bulbasornado Result: Destroyed by G-47 Trooper with Particle Gun Performance ------------- Evolutions (0) 0 Regions Visited (2) 400 Robots Destroyed (28) 140 Value Destroyed (565) 565 Prototype IDs (2) 40 Alien Tech Used (0) 0 Bonus (0) 0 TOTAL SCORE: 1145 Bonus ------- None Cogmind --------- Core Integrity 0/250 Matter 262/300 Energy 40/100 System Corruption 3% Temperature Cool (89) Movement Rolling (80) Location -10/Mines Parts ------- > --- POWER (1) -------- (None) > --- PROPULSION (2) --- Wheel Wheel > --- UTILITY (2) ------ Targeting Computer Targeting Computer > --- WEAPON (2) ------- Beam Cannon Beam Cannon > --- INVENTORY (5) ---- Beam Rifle Peak State ------------ > --- POWER ------------ Light Ion Engine > --- PROPULSION ------- Wheel Wheel > --- UTILITY ---------- Heat Sink Improved Terrain Scanner > --- WEAPON ----------- Beam Cannon Grenade Launcher > --- INVENTORY -------- Wheel Wheel Wheel Wheel Medium Laser [Rating: 9] Favorites ----------- Power Light Ion Engine Engine Light Ion Engine Propulsion Wheel Wheel Wheel Utility Heat Sink Device Heat Sink Processor Targeting Computer Protection Light Armor Plating Weapon Medium Laser Energy Gun Medium Laser Energy Cannon Beam Cannon Launcher Grenade Launcher Build | -11 -10 -10 ------- Run | Yrd Mat Min Slots Evolved . | . . . Power . | . . . Propulsion . | . . . Utility . | . . . Weapon . | . . . Parts Attached 27 | 7 11 9 Power 4 | 2 1 1 Engine 4 | 2 1 1 Core . | . . . Reactor . | . . . Propulsion 4 | 2 1 1 Treads . | . . . Leg . | . . . Wheel 4 | 2 1 1 Hover . | . . . Flight . | . . . Utility 8 | 1 4 3 Device 3 | 1 2 . Storage . | . . . Processor 2 | . 1 1 Hackware . | . . . Protection 3 | . 1 2 Artifact . | . . . Weapon 11 | 2 5 4 Energy Gun 5 | 2 2 1 Energy Cannon 3 | . 2 1 Ballistic Gun . | . . . Ballistic Cannon . | . . . Launcher 3 | . 1 2 Special Weapon . | . . . Impact Weapon . | . . . Slashing Weapon . | . . . Piercing Weapon . | . . . Special Melee Weapon . | . . . Unidentified Prototypes . | . . . Parts Lost 6 | . . 6 Power 2 | . . 2 Propulsion 1 | . . 1 Utility 2 | . . 2 Weapon 1 | . . 1 Highest Loss Streak 5 | . . 5 To Critical Strikes . | . . . Average Slot Usage (%) 96 | . 98 85 Engine 12 | . 14 7 Wheel 27 | . 28 25 Device 15 | . 18 . Processor 4 | . 2 15 Protection 6 | . 5 10 Energy Gun 10 | . 12 1 Energy Cannon 13 | . 13 15 Launcher 3 | . 2 8 Naked Turns . | . . . Heaviest Build 16 | 8 12 16 Greatest Support 20 | 20 20 20 Greatest Overweight (x) 1 | . . 1 Average Overweight (x) . | . . . Largest Inventory Capacity 5 | 5 5 5 Average Capacity 5 | 5 5 5 Most Carried 5 | 5 5 5 Average Carried 4 | 3 4 4 Final Capacity 5 | 5 5 5 Final Carried 5 | 5 5 1 Class Distribution -------------------- 100% | Mutant Dominant Class ---------------- Mutant | -10/Materials Mutant | -10/Mines Resources | -11 -10 -10 ----------- Run | Yrd Mat Min Matter Collected 498 | 270 167 61 Remotely . | . . . Salvage Created 837 | 93 563 181 Parts 59 | 12 37 10 Haulers Intercepted 2 | . 2 . Recyclers Shooed 1 | . 1 . Parts Field Recycled . | . . . Retrieved Matter . | . . . Parts Self-Destructed . | . . . Prevented . | . . . Kills | -11 -10 -10 ------- Run | Yrd Mat Min Combat Hostiles Destroyed 19 | 1 12 6 Guns 9 | 1 6 2 Cannons 7 | . 3 4 AOE 3 | . 3 . Classes Destroyed 9 | 3 4 2 Worker 3 | 1 2 . Tunneler 2 | 2 . . Hauler 2 | . 2 . Recycler 2 | . 1 1 Watcher 1 | . 1 . Swarmer 6 | . 3 3 Grunt 10 | 1 9 . Sentry 2 | . . 2 Assembled 1 | . . 1 Best Kill Streak 4 | 2 4 4 Combat Bots Only 4 | 1 4 3 Max Kills in Single Turn 2 | 1 2 1 Gunslinging . | . . . Exploded 1 | . 1 . Melee . | . . . Uniques/NPCs Destroyed . | . . . Combat | -11 -10 -10 -------- Run | Yrd Mat Min Hostile Shots Fired 66 | 3 28 35 Missed 22 | 1 12 9 Damage Taken 994 | 22 227 745 Core 257 | . 70 187 Absorbed by Shields . | . . . Regen/Repaired (Parts) 22 | . 22 . Core Remaining (%) 100 | 100 . . Volleys Fired 64 | 11 43 10 Largest 2 | 2 2 2 Hottest 120 | 100 110 120 Shots Fired 117 | 22 76 19 Gun 54 | 22 28 4 Cannon 55 | . 43 12 Launcher 8 | . 5 3 Special . | . . . Kinetic . | . . . Thermal 109 | 22 71 16 Explosive 8 | . 5 3 Electromagnetic . | . . . Robot Hit Streak 13 | 6 13 5 Robot Miss Streak 3 | 3 2 1 Penetration Max . | . . . Secondary Targets . | . . . Shots Hit Robots 72 | 14 46 12 Core Hits 46 | 5 25 16 Critical Kills . | . . . Critical Parts Destroyed . | . . . Critical Strikes 6 | 2 3 1 Burn 6 | 2 3 1 Melee Attacks . | . . . Impact . | . . . Slashing . | . . . Piercing . | . . . Sneak Attacks . | . . . Combat Hostiles . | . . . Follow-up Attacks . | . . . Damage Inflicted 1476 | 178 1018 280 Guns 490 | 178 282 30 Cannons 586 | . 427 159 Explosions 400 | . 309 91 Melee . | . . . Ramming . | . . . Kinetic . | . . . Thermal 1076 | 178 709 189 Explosive 400 | . 309 91 Electromagnetic . | . . . Impact . | . . . Slashing . | . . . Piercing . | . . . Highest Corruption 3 | . 3 3 Average Corruption 2 | . 2 3 Corruption Purged . | . . . Corruption Blocked . | . . . Effects 10 | . 8 2 Message Errors 3 | . 2 1 Matter Fused 2 | . 1 1 Heat Flow Errors 2 | . 2 . Data Loss (major) 1 | . 1 . Alerts 1 | . 1 . Weapon Failures 1 | . 1 . Overload Shots . | . . . Overflow Damage . | . . . Projectiles . | . . . Explosions . | . . . Melee . | . . . Knockbacks . | . . . Impact . | . . . Kinetic . | . . . Secondary . | . . . Self-Inflicted Damage 34 | . 34 . Shots 1 | . 1 . Rammed . | . . . Targets Rammed . | . . . Kicked . | . . . Crushed . | . . . Highest Temperature 301 | 283 301 216 Average Temperature 85 | 113 61 93 Received Heat Transfer 193 | 12 96 85 Effects 1 | 1 . . Energy Bleed 1 | 1 . . Siege Activations . | . . . Robots Corrupted . | . . . Combat Hostiles . | . . . Parts Fried . | . . . Impact Corruptions . | . . . Robots Melted . | . . . Combat Hostiles . | . . . Parts Melted 7 | 3 4 . Heat Transferred 3071 | 666 1924 481 Parts Sabotaged . | . . . Parts Stolen . | . . . Parts Stripped . | . . . Power Chain Reactions . | . . . Alert | -11 -10 -10 ------- Run | Yrd Mat Min Peak Influence 363 | 35 363 281 Initial 125 | . 22 125 Average 219 | 16 257 209 Maximum Alert Level 1 | . 1 1 Low Security (%) 35 | 100 22 48 Level 1 64 | . 77 51 Level 2 . | . . . Level 3 . | . . . Level 4 . | . . . Level 5 . | . . . High Security . | . . . Max Security . | . . . Squads Dispatched 2 | . 2 . Investigation 2 | . 2 . Extermination . | . . . Reinforcement . | . . . Assault . | . . . Garrison . | . . . Intercept . | . . . Searches Triggered . | . . . Construction Impeded . | . . . Haulers Reinforced . | . . . Active Scanning Responses . | . . . Cargo Convoy Interrupts . | . . . Stealth | -11 -10 -10 --------- Run | Yrd Mat Min Distress Signals 2 | . 2 . Communications Jammed . | . . . Distress Signals . | . . . Times Spotted 34 | 1 16 17 Peak Tracking Total 11 | 1 5 11 Tactical Retreats 2 | . 1 1 Traps | -11 -10 -10 ------- Run | Yrd Mat Min Traps Triggered 1 | . 1 . Indirectly . | . . . Trap Hack Attempts . | . . . Triggered . | . . . Disarmed . | . . . Reprogrammed . | . . . Reused . | . . . Traps Extracted . | . . . Installed . | . . . Triggered . | . . . Machines | -11 -10 -10 ---------- Run | Yrd Mat Min Machines Disabled 2 | . . 2 Max in Single Turn 1 | . . 1 Machines Repaired . | . . . Machines Dismantled . | . . . Machines Sabotaged . | . . . Overloaded Fab Kills . | . . . Hacking | -11 -10 -10 --------- Run | Yrd Mat Min Machines Accessed 10 | . 10 . Terminals 7 | . 7 . Fabricators . | . . . Repair Stations 1 | . 1 . Recycling Units 2 | . 2 . Scanalyzers . | . . . Garrison Access . | . . . Total Hacks 29 | . 29 . Successful 14 | . 14 . Failed 14 | . 14 . Catastrophic 1 | . 1 . Database Lockouts 1 | . 1 . Manual 18 | . 18 . Terminals 21 | . 21 . Fabricators . | . . . Repair Stations 2 | . 2 . Recycling Units 6 | . 6 . Scanalyzers . | . . . Garrison Access . | . . . Terminal Hacks 6 | . 6 . Robot Analysis 3 | . 3 . Prototype ID Bank 1 | . 1 . Locate Traps 1 | . 1 . Hauler Manifests 1 | . 1 . Fabricator Hacks . | . . . Repair Station Hacks 2 | . 2 . Scan Component 1 | . 1 . Repair 1 | . 1 . Recycling Unit Hacks 3 | . 3 . Report Inventory 3 | . 3 . Scanalyzer . | . . . Garrison Access Hacks . | . . . Unauthorized Hacks 3 | . 3 . Terminals 3 | . 3 . Botnet 3 | . 3 . Fabricators . | . . . Repair Stations . | . . . Recycling Units . | . . . Scanalyzers . | . . . Garrison Access . | . . . Data Cores Recovered . | . . . Used . | . . . Hacking Detections 10 | . 10 . Full Trace Events 5 | . 5 . Feedback Events 1 | . 1 . Corruption 1 | . 1 . Feedback Blocked . | . . . Robot Schematics Acquired . | . . . Robots Built . | . . . Authchips . | . . . Time . | . . . Total Robot Build Rating . | . . . Part Schematics Acquired . | . . . Parts Built . | . . . Authchips . | . . . Time . | . . . Total Part Build Rating . | . . . Parts Repaired 1 | . 1 . Time 26 | . 26 . Parts Recycled . | . . . Recycled Matter . | . . . Retrieved Matter . | . . . Retrieved Components . | . . . Parts Scanalyzed . | . . . Part Schematics Acquired . | . . . Parts Damaged . | . . . Bothacking | -11 -10 -10 ------------ Run | Yrd Mat Min Used RIF Installer . | . . . Robots Hacked . | . . . Non-combat . | . . . Combat . | . . . Robot Hacks Applied . | . . . Relay Couplers Released . | . . . Fabnet Peak Effective % . | . . . Robots Rewired . | . . . Allies Hacked . | . . . Hacks Repelled . | . . . Allies | -11 -10 -10 -------- Run | Yrd Mat Min Total Allies . | . . . Largest Group . | . . . Highest-Rated Group . | . . . Highest-Rated Ally . | . . . Total Orders . | . . . Ally Attacks . | . . . Total Damage . | . . . Kills . | . . . Allies Corrupted . | . . . Allies Melted . | . . . Intel | -11 -10 -10 ------- Run | Yrd Mat Min Robot Analysis Total 3 | . 3 . Derelict Logs Recovered 1 | . . 1 Drone Launches . | . . . Drone Recoveries . | . . . Exploration | -11 -10 -10 ------------- Run | Yrd Mat Min Turns Passed 950 | 126 695 129 Spaces Moved 856 | 83 668 105 Core 17 | 17 . . Treads . | . . . Legs . | . . . Wheels 839 | 66 668 105 Hover . | . . . Flight . | . . . Fastest Speed 50 | 50 80 80 Average Speed 79 | 73 80 80 Slowest Speed 95 | 80 80 95 Overloaded Moves . | . . . Propulsion Burnouts . | . . . Robots Hopped . | . . . Cave-ins Triggered . | . . . Exploration Rate (%) 43 | 6 98 25 Regions Visited 2 Branch Regions 1 Pre-discovered Areas . | . . . Known Exits Taken . | . . . Unknown Exits Taken 2 | 1 1 . Scrap Searched . | . . . Spaces Dug . | . . . Terrain Destroyed 66 | . 47 19 Melee . | . . . Projectile . | . . . AOE 66 | . 47 19 Terrain Rammed . | . . . Walls Destroyed . | . . . Machines Disabled . | . . . Actions | -11 -10 -10 --------- Run | Yrd Mat Min Total 1010 | 126 753 131 Wait 34 | 14 16 4 Move 854 | 82 667 105 Hop . | . . . Pick Up 13 | 8 4 1 Fast Attach 13 | 6 6 1 Attach 4 | . . 4 Detach 1 | . 1 . Swap 10 | 1 5 4 Drop 17 | 4 11 2 Fire 64 | 11 43 10 Melee . | . . . Ram . | . . . Kick . | . . . Crush . | . . . Escape Stasis . | . . . Rewire . | . . . Trap . | . . . Miscellaneous . | . . . Route ------- -11/Scrapyard -10/Materials (discovered 4 exits: [*Mat x3] / [*Min]) -10/Mines History --------- Turn | Location | Event 2 | -11/Scrapyard | Met Revision 17 53 | -11/Scrapyard | Discovered new exit (range 8) 127 | -11/Scrapyard | Entered Materials 228 | -10/Materials | Discovered new exit (range 8) 314 | -10/Materials | Build established: Mutant 350 | -10/Materials | Central database locked down 422 | -10/Materials | Discovered new exit (range 11) 502 | -10/Materials | Discovered new exit (range 5) 503 | -10/Materials | Discovered new exit (range 15) 655 | -10/Materials | Repaired Grenade Launcher? 822 | -10/Materials | Entered Mines 891 | -10/Mines | Assembled infested the area 896 | -10/Mines | Assisted by a Guerilla fighting off Assembled 913 | -10/Mines | Core integrity fell below 50% 916 | -10/Mines | Core integrity fell below 20% 945 | -10/Mines | Learned 2 Materials zone layouts 951 | -10/Mines | Destroyed by G-47 Trooper with Particle Gun Last Messages --------------- coming from, and they're closing on this area, come on!" 00896_ S-10 Pest destroyed. 00900_ Acquired 7 matter. 00904_ C-30 ARC bursts open, deploying its payload. 00904_ D-53 Grenadier unfolds itself. 00905_ R-06 Scavenger destroyed. 00906_ Lgt. Armor Plating destroyed. 00906_ PH-KPK(h) destroyed. 00907_ The unstable cave ceiling collapses. 00908_ Wheel destroyed. 00910_ Grenade Launcher destroyed. 00914_ The unstable cave ceiling collapses. 00914_ Imp. Ion Engine destroyed. 00915_ The unstable cave ceiling collapses. 00925_ Lgt. Armor Plating destroyed. 00927_ The unstable cave ceiling collapses. 00945_ Acquired derelict log, extracted data. Data stored: Materials zone layouts (x2). 00947_ as-10542 destroyed. 00950_ as-23885 destroyed. Map ----- +----------------------------------------------------+ | #?????????????????????????????????????????????? | | ##?????????????????????????????????????????????? | | ####???????????????????????????????????????????? | | #???????????????????????????????????????????? | | ### #????????????#??????????????#???????????????? | | ##???#???????????? ????????????? ####????????????? | | ?????????????????# #?????????? ????????????? | | ?????????????????# #????????? ??????????????? | | ?????????????????# #???????? #???????????????? | | #????????????????# #??????? #????????????????? | | ?????????#####???# ####### ##???????????????? | | ????????## ##### # #???????????????? | | ######### # # #???????????? | | # ### ## #???????????????? | | ## #????#????????????????????? | | ## #?????????????????????????? | | #### ## #?????????????????????????? | | ##?# ### #?????????????????????????? | | # #??# ###?# #?????????????????????????? | | ##??## #???# #?????????????????????????? | | # ##????# #???# #######???????????????????? | | # #????? #???# g #???????????????????? | | ### # ####????? ???## # ##??????????????????? | | ??#####??????? ???# #??????????????????? | | ????????????# # d#???????????????????? | | ????????????# < a @ d #???????????????????? | | ?????????????# ##???????????????????? | | ?????????????## # #???????????????????? | | ??????????????## ??### ####???????????????????? | | ???????????????## ??????###??????????????????????? | | ?????????????????#???????????????????????????????? | | ?????????????????????????????????????????????????? | | ?????????????????????????????????????????????????? | | ?????????????????????????????????????????????????? | | ?????????????????????????????????????????????????? | | ?????????????????????????????????????????????????? | | ?????????????????????????????????????????????????? | | ?????????????????????????????????????????????????? | | ?????????????????????????????????????????????????? | | ?????????????????????????????????????????????????? | | ?????????????????????????????????????????????????? | | ?????????????????????????????????????????????????? | | ?????????????????????????????????????????????????? | | ?????????????????????????????????????????????????? | | ?????????????????????????????????????????????????? | | ?????????????????????????????????????????????????? | | ?????????????????????????????????????????????????? | | ?????????????????????????????????????????????????? | | ?????????????????????????????????????????????????? | | ?????????????????????????????????????????????????? | +----------------------------------------------------+ Best States ------------- Heat Dissipation 45 Energy Generation 12 Energy Capacity 265 Matter Stores 300 Matter Capacity 300 Sight Range 16 Terrain Scan Range 16 Terrain Scan Density 10 Armor Coverage 150 Evasion (%) 50 Targeting Accuracy 10 Item Schematics ----------------- None Robot Schematics ------------------ None Fabricated ------------ Nothing Alien Tech Used ----------------- None Achievements -------------- None Challenges ------------ None Game ------ Seed PowerHypercooledMapper Manual? 0 Play Time 00:19:26 Cumulative 63.7 hours Start 2024.04.12 @ 07:22:36 End 2024.04.12 @ 07:42:42 Sessions 1 Manual Loads 0 Difficulty Rogue Special Mode None Game No. 29 Rogue 28 Adventurer 1 Explorer 0 Win Type - Total 1 Types 1/0/0/0/0/0/0/0/0 Lore% 44 Gallery% 33 Achievement% 21 Wizard Run 0 Options --------- Layout 0 ASCII 0 Keyboard 1 Movement Vi Keybinds 0 Fullscreen 2 Font 18/Smallcaps Map View 76x50 Zoom Use 0% Tactical HUD 1 Map Filters NONE Filters NONE Steam 1 RUN: 86c324cb-75e8-41b2-8e7b-507bd4dff0a6